Cogmind - Beta 13 @@@ ROGUE MODE // 2024.04.08 @ 21:07:54 Player: MO-55 Result: Destroyed by G-47 Trooper with Particle Gun Performance ------------- Evolutions (2) 1000 Regions Visited (3) 600 Robots Destroyed (43) 215 Value Destroyed (1461) 1461 Prototype IDs (5) 100 Alien Tech Used (0) 0 Bonus (44) 44 TOTAL SCORE: 3420 Bonus ------- High Alert Combat Kills 44 Cogmind --------- Core Integrity 0/550 Matter 162/300 Energy 100/100 System Corruption 0% Temperature Cool (18) Movement Core (1350) Ox26 Location -8/Materials Parts ------- > --- POWER (1) -------- (None) > --- PROPULSION (3) --- (None) > --- UTILITY (5) ------ Huge Storage Unit Improved Signal Interpreter System Shield > --- WEAPON (2) ------- (None) > --- INVENTORY (25) --- Improved Ion Engine Light Nuclear Core Light Nuclear Core Light Nuclear Core Aerolev Unit Aerolev Unit Aerolev Unit Aerolev Unit Aerolev Unit Improved Heat Sink Cooling System Small Storage Unit High-capacity Matter Pod (200) Improved Sensor Array Improved Terrain Scanner Reaction Control System Medium Armor Plating Pulse Rifle Heavy Assault Rifle Autogun Flak Cannon Mace Peak State ------------ > --- POWER ------------ Heavy Ion Engine > --- PROPULSION ------- Armored Treads VSS Leg Wheel > --- UTILITY ---------- Huge Storage Unit Improved Sensor Array Improved Signal Interpreter Improved Terrain Scanner System Shield > --- WEAPON ----------- Minigun Assault Cannon > --- INVENTORY -------- Improved Ion Engine Improved Ion Engine Light Nuclear Core VSS Leg Aerolev Unit Aerolev Unit Aerolev Unit Aerolev Unit Cooling System Cooling System Small Storage Unit High-capacity Matter Pod Reaction Control System Light Armor Plating Light Armor Plating Light Armor Plating Light Armor Plating Light Armor Plating Light Armor Plating Light Armor Plating Medium Armor Plating Pulse Rifle Heavy Assault Rifle Autogun Mace [Rating: 34] Favorites ----------- Power Heavy Ion Engine Engine Heavy Ion Engine Propulsion Wheel Treads Armored Treads Leg VSS Leg Wheel Wheel Hover Unit Improved Hover Unit Utility Huge Storage Unit Device Improved Terrain Scanner Storage Huge Storage Unit Processor Improved Signal Interpreter Hackware System Shield Protection Light Armor Plating Weapon Minigun Energy Gun Medium Laser Ballistic Gun Minigun Ballistic Cannon Assault Cannon Impact Weapon Mace Build | -11 -10 -9 -8 ------- Run | Yrd Mat Mat Mat Slots Evolved 4 | . . 2 2 Power . | . . . . Propulsion 1 | . . 1 . Utility 3 | . . 1 2 Weapon . | . . . . Parts Attached 63 | 6 4 18 35 Power 4 | 1 1 1 1 Engine 4 | 1 1 1 1 Core . | . . . . Reactor . | . . . . Propulsion 9 | 1 2 1 5 Treads 2 | . . . 2 Leg 2 | 1 . . 1 Wheel 3 | . 2 1 . Hover 2 | . . . 2 Flight . | . . . . Utility 32 | 2 1 10 19 Device 10 | 1 . 5 4 Storage 2 | 1 1 . . Processor 1 | . . . 1 Hackware 1 | . . . 1 Protection 18 | . . 5 13 Artifact . | . . . . Weapon 18 | 2 . 6 10 Energy Gun 4 | 1 . 2 1 Energy Cannon . | . . . . Ballistic Gun 11 | 1 . 4 6 Ballistic Cannon 1 | . . . 1 Launcher . | . . . . Special Weapon . | . . . . Impact Weapon 2 | . . . 2 Slashing Weapon . | . . . . Piercing Weapon . | . . . . Special Melee Weapon . | . . . . Unidentified Prototypes 5 | . . 2 3 Parts Lost 21 | . 1 5 15 Power 4 | . 1 1 2 Propulsion 5 | . . 1 4 Utility 10 | . . 3 7 Weapon 2 | . . . 2 Highest Loss Streak 11 | . 1 2 11 To Critical Strikes . | . . . . Average Slot Usage (%) 90 | . 96 80 95 Engine 10 | . 14 10 8 Treads 4 | . . . 8 Leg 3 | . 3 . 5 Wheel 13 | . 21 15 10 Device 12 | . 14 13 12 Storage 10 | . 14 11 9 Processor 4 | . . . 7 Hackware 4 | . . . 8 Protection 6 | . . 8 6 Energy Gun 4 | . 14 8 . Ballistic Gun 11 | . 14 13 10 Ballistic Cannon 3 | . . . 7 Naked Turns . | . . . . Heaviest Build 102 | 15 90 98 102 Greatest Support 20 | 10 20 20 20 Greatest Overweight (x) 30 | 1 4 9 30 Average Overweight (x) 6 | . 3 6 7 Largest Inventory Capacity 25 | 8 25 25 25 Average Capacity 23 | 7 21 25 25 Most Carried 25 | 6 7 25 25 Average Carried 18 | 4 5 14 24 Final Capacity 25 | 8 25 25 25 Final Carried 24 | 5 7 24 22 Class Distribution -------------------- 46% | Mutant 30% | Scavenger-Skirmisher 23% | Scavenger-Mutant Dominant Class ---------------- Mutant | -10/Materials Mutant | -9/Materials Scavenger-Skirmisher | -8/Materials Resources | -11 -10 -9 -8 ----------- Run | Yrd Mat Mat Mat Matter Collected 1617 | 225 132 409 851 Remotely . | . . . . Salvage Created 1737 | 19 58 496 1164 Parts 96 | 3 . 30 63 Haulers Intercepted 4 | . 1 1 2 Recyclers Shooed 2 | . . . 2 Parts Field Recycled . | . . . . Retrieved Matter . | . . . . Parts Self-Destructed . | . . . . Prevented . | . . . . Kills | -11 -10 -9 -8 ------- Run | Yrd Mat Mat Mat Combat Hostiles Destroyed 29 | . . 7 22 Guns 18 | . . 7 11 Cannons 8 | . . . 8 AOE 3 | . . . 3 Classes Destroyed 9 | 1 1 4 3 Worker 1 | . . . 1 Tunneler 2 | 1 . 1 . Hauler 4 | . 1 1 2 Recycler 1 | . . . 1 Operator 1 | . . 1 . Watcher 5 | . . 3 2 Swarmer 3 | . . . 3 Grunt 12 | . . 3 9 Sentry 14 | . . 4 10 Best Kill Streak 5 | 1 1 3 5 Combat Bots Only 4 | . . 3 4 Max Kills in Single Turn 4 | 1 1 1 4 Gunslinging . | . . . . Exploded 3 | . . . 3 Melee . | . . . . Uniques/NPCs Destroyed . | . . . . Combat | -11 -10 -9 -8 -------- Run | Yrd Mat Mat Mat Hostile Shots Fired 284 | . . 55 229 Missed 78 | . . 13 65 Damage Taken 2904 | . 68 597 2239 Core 661 | . 14 83 564 Absorbed by Shields . | . . . . Core Remaining (%) 91 | 100 94 79 . Volleys Fired 125 | 3 3 52 67 Largest 2 | 2 2 2 2 Hottest 79 | 70 70 79 69 Shots Fired 245 | 6 6 100 133 Gun 194 | 6 6 100 82 Cannon 51 | . . . 51 Launcher . | . . . . Special . | . . . . Kinetic 200 | 3 3 61 133 Thermal 45 | 3 3 39 . Explosive . | . . . . Electromagnetic . | . . . . Robot Hit Streak 11 | 2 3 11 8 Robot Miss Streak 3 | 2 1 3 2 Penetration Max . | . . . . Secondary Targets . | . . . . Shots Hit Robots 158 | 3 4 66 85 Core Hits 66 | 1 2 19 44 Critical Kills . | . . . . Critical Parts Destroyed 2 | . . 1 1 Critical Strikes 3 | 1 . 1 1 Burn 1 | 1 . . . Destroy 2 | . . 1 1 Melee Attacks 2 | . . . 2 Impact 2 | . . . 2 Slashing . | . . . . Piercing . | . . . . Sneak Attacks . | . . . . Combat Hostiles . | . . . . Follow-up Attacks . | . . . . Damage Inflicted 3372 | 41 52 975 2304 Guns 2025 | 41 52 975 957 Cannons 758 | . . . 758 Explosions 589 | . . . 589 Melee . | . . . . Ramming . | . . . . Kinetic 2261 | 28 40 478 1715 Thermal 522 | 13 12 497 . Explosive 589 | . . . 589 Electromagnetic . | . . . . Impact . | . . . . Slashing . | . . . . Piercing . | . . . . Highest Corruption . | . . . . Average Corruption . | . . . . Corruption Purged . | . . . . Corruption Blocked . | . . . . Overload Shots . | . . . . Overflow Damage 87 | . . . 87 Projectiles 2 | . . . 2 Explosions 85 | . . . 85 Melee . | . . . . Knockbacks 10 | . . . 10 Impact . | . . . . Kinetic 7 | . . . 7 Secondary 3 | . . . 3 Self-Inflicted Damage 110 | . . . 110 Shots 1 | . . . 1 Rammed . | . . . . Targets Rammed . | . . . . Kicked . | . . . . Crushed . | . . . . Highest Temperature 245 | 18 18 245 223 Average Temperature 59 | 9 9 56 65 Received Heat Transfer 1263 | . . 273 990 Effects 2 | . . 1 1 Energy Bleed 1 | . . . 1 Interference 1 | . . 1 . Siege Activations . | . . . . Robots Corrupted . | . . . . Combat Hostiles . | . . . . Parts Fried . | . . . . Impact Corruptions 1 | . . . 1 Robots Melted . | . . . . Combat Hostiles . | . . . . Parts Melted 2 | . . 2 . Heat Transferred 1295 | 111 37 1147 . Parts Sabotaged . | . . . . Parts Stolen . | . . . . Parts Stripped . | . . . . Power Chain Reactions . | . . . . Alert | -11 -10 -9 -8 ------- Run | Yrd Mat Mat Mat Peak Influence 458 | 5 53 161 458 Initial 22 | . 3 22 4 Average 86 | 2 28 89 104 Maximum Alert Level 2 | . . . 2 Low Security (%) 89 | 100 100 100 78 Level 1 7 | . . . 14 Level 2 3 | . . . 6 Level 3 . | . . . . Level 4 . | . . . . Level 5 . | . . . . High Security . | . . . . Max Security . | . . . . Squads Dispatched 7 | . 1 2 4 Investigation 1 | . . . 1 Extermination . | . . . . Reinforcement 3 | . 1 2 . Assault 1 | . . . 1 Garrison 2 | . . . 2 Intercept . | . . . . Searches Triggered . | . . . . Construction Impeded . | . . . . Haulers Reinforced . | . . . . Active Scanning Responses . | . . . . Cargo Convoy Interrupts . | . . . . Stealth | -11 -10 -9 -8 --------- Run | Yrd Mat Mat Mat Distress Signals 8 | . . 3 5 Communications Jammed . | . . . . Distress Signals . | . . . . Times Spotted 61 | . 3 14 44 Peak Tracking Total 11 | . 2 5 11 Tactical Retreats 1 | . . 1 . Traps | -11 -10 -9 -8 ------- Run | Yrd Mat Mat Mat Traps Triggered 2 | . 2 . . Indirectly . | . . . . Trap Hack Attempts . | . . . . Triggered . | . . . . Disarmed . | . . . . Reprogrammed . | . . . . Reused . | . . . . Traps Extracted . | . . . . Installed . | . . . . Triggered . | . . . . Machines | -11 -10 -9 -8 ---------- Run | Yrd Mat Mat Mat Machines Disabled 3 | . . . 3 Max in Single Turn 1 | . . . 1 Garrison Access 1 | . . . 1 Machines Repaired . | . . . . Machines Dismantled . | . . . . Machines Sabotaged . | . . . . Overloaded Fab Kills . | . . . . Hacking | -11 -10 -9 -8 --------- Run | Yrd Mat Mat Mat Machines Accessed 9 | . 2 1 6 Terminals 6 | . 2 1 3 Fabricators . | . . . . Repair Stations . | . . . . Recycling Units 1 | . . . 1 Scanalyzers 1 | . . . 1 Garrison Access 1 | . . . 1 Total Hacks 36 | . 9 4 23 Successful 16 | . 4 2 10 Failed 20 | . 5 2 13 Catastrophic 2 | . 1 . 1 Database Lockouts . | . . . . Manual 25 | . 8 2 15 Terminals 28 | . 9 4 15 Fabricators . | . . . . Repair Stations . | . . . . Recycling Units 2 | . . . 2 Scanalyzers 2 | . . . 2 Garrison Access 4 | . . . 4 Terminal Hacks 6 | . 2 1 3 Terminal Index 1 | . 1 . . Unreport Threat 1 | . . . 1 Locate Traps 2 | . 1 . 1 Hauler Manifests 2 | . . 1 1 Fabricator Hacks . | . . . . Repair Station Hacks . | . . . . Recycling Unit Hacks . | . . . . Scanalyzer 2 | . . . 2 Insert Component 1 | . . . 1 Analyze 1 | . . . 1 Garrison Access Hacks . | . . . . Unauthorized Hacks 8 | . 2 1 5 Terminals 6 | . 2 1 3 Botnet 5 | . 2 1 2 Operators 1 | . . . 1 Fabricators . | . . . . Repair Stations . | . . . . Recycling Units 2 | . . . 2 Reject 1 | . . . 1 Mask 1 | . . . 1 Scanalyzers . | . . . . Garrison Access . | . . . . Data Cores Recovered . | . . . . Used . | . . . . Hacking Detections 7 | . 2 1 4 Full Trace Events 1 | . . . 1 Feedback Events . | . . . . Feedback Blocked . | . . . . Robot Schematics Acquired . | . . . . Robots Built . | . . . . Authchips . | . . . . Time . | . . . . Total Robot Build Rating . | . . . . Part Schematics Acquired 1 | . . . 1 Parts Built . | . . . . Authchips . | . . . . Time . | . . . . Total Part Build Rating . | . . . . Parts Repaired . | . . . . Time . | . . . . Parts Recycled . | . . . . Recycled Matter . | . . . . Retrieved Matter . | . . . . Retrieved Components . | . . . . Parts Scanalyzed 1 | . . . 1 Part Schematics Acquired 1 | . . . 1 Parts Damaged . | . . . . Bothacking | -11 -10 -9 -8 ------------ Run | Yrd Mat Mat Mat Used RIF Installer . | . . . . Robots Hacked . | . . . . Non-combat . | . . . . Combat . | . . . . Robot Hacks Applied . | . . . . Relay Couplers Released 2 | . . . 2 Machine Destruction 2 | . . . 2 Fabnet Peak Effective % . | . . . . Robots Rewired . | . . . . Allies Hacked . | . . . . Hacks Repelled . | . . . . Allies | -11 -10 -9 -8 -------- Run | Yrd Mat Mat Mat Total Allies . | . . . . Largest Group . | . . . . Highest-Rated Group . | . . . . Highest-Rated Ally . | . . . . Total Orders . | . . . . Ally Attacks . | . . . . Total Damage . | . . . . Kills . | . . . . Allies Corrupted . | . . . . Allies Melted . | . . . . Intel | -11 -10 -9 -8 ------- Run | Yrd Mat Mat Mat Robot Analysis Total . | . . . . Derelict Logs Recovered . | . . . . Drone Launches . | . . . . Drone Recoveries . | . . . . Exploration | -11 -10 -9 -8 ------------- Run | Yrd Mat Mat Mat Turns Passed 2522 | 94 300 818 1310 Spaces Moved 1001 | 46 190 298 467 Core 11 | 10 . . 1 Treads 3 | . . . 3 Legs 69 | 36 33 . . Wheels 918 | . 157 298 463 Hover . | . . . . Flight . | . . . . Fastest Speed 50 | 50 140 140 140 Average Speed 181 | 151 148 178 200 Slowest Speed 1550 | 190 190 215 1550 Overloaded Moves . | . . . . Propulsion Burnouts . | . . . . Robots Hopped . | . . . . Cave-ins Triggered . | . . . . Exploration Rate (%) 28 | 3 41 26 45 Regions Visited 3 Branch Regions . Pre-discovered Areas . | . . . . Known Exits Taken . | . . . . Unknown Exits Taken 3 | 1 1 1 . Scrap Searched . | . . . . Spaces Dug . | . . . . Terrain Destroyed 39 | . . . 39 Melee . | . . . . Projectile 9 | . . . 9 AOE 30 | . . . 30 Terrain Rammed . | . . . . Walls Destroyed . | . . . . Machines Disabled . | . . . . Actions | -11 -10 -9 -8 --------- Run | Yrd Mat Mat Mat Total 1469 | 64 200 488 717 Wait 192 | . . 91 101 Move 998 | 45 189 297 467 Hop . | . . . . Pick Up 61 | 10 4 26 21 Fast Attach 8 | 1 . . 7 Attach 21 | 5 2 7 7 Detach 1 | . . . 1 Swap 35 | . 2 11 22 Drop 26 | . . 4 22 Fire 125 | 3 3 52 67 Melee 2 | . . . 2 Ram . | . . . . Kick . | . . . . Crush . | . . . . Escape Stasis . | . . . . Rewire . | . . . . Trap . | . . . . Miscellaneous . | . . . . Route ------- -11/Scrapyard -10/Materials -9/Materials -8/Materials (discovered 2 exits: [*Sto x2]) History --------- Turn | Location | Event 9 | -11/Scrapyard | Discovered new exit (range 16) 95 | -11/Scrapyard | Entered Materials 316 | -10/Materials | Build established: Mutant 382 | -10/Materials | Discovered new exit (range 6) 395 | -10/Materials | Entered another Materials area 395 | -9/Materials | Evolved 2 slots: Propulsion x1, Utility x1 936 | -9/Materials | Discovered new exit (range 13) 1213 | -9/Materials | Entered another Materials area 1213 | -8/Materials | Evolved 2 slots: Utility x2 1744 | -8/Materials | Discovered new exit (range 5) 1915 | -8/Materials | Build established: Scavenger-Skirmisher 2094 | -8/Materials | Discovered new exit (range 7) 2180 | -8/Materials | Garrison activated, responded to threat 2514 | -8/Materials | Core integrity fell below 50% 2520 | -8/Materials | Core integrity fell below 20% 2523 | -8/Materials | Destroyed by G-47 Trooper with Particle Gun Last Messages --------------- 02490_ Wheel destroyed. 02493_ M-28 Smith repairs G-47 Trooper. 02494_ Lgt. Armor Plating destroyed. 02496_ M-28 Smith fits Backup Power III on G-47 Trooper. 02496_ Minigun destroyed. 02496_ Critical hit (Burn: +37). 02498_ M-28 Smith repairs Aluminum Leg. 02506_ Hvy. Ion Engine destroyed. 02507_ Arm. Treads destroyed. 02509_ Lgt. Armor Plating destroyed. 02509_ Assault Cannon destroyed. 02511_ Lgt. Armor Plating destroyed. 02512_ U-05 Engineer lays Concrete. 02516_ U-05 Engineer builds a Wall. 02517_ Matter Filter disabled. 02517_ M-28 Smith repairs G-50 Soldier. 02517_ U-05 Engineer lays Concrete. 02519_ U-05 Engineer builds a Wall. 02521_ S-10 Pest destroyed. 02522_ M-28 Smith repairs G-47 Trooper. Map ----- +----------------------------------------------------+ | ?????????????????????????# ##!!! | | ????????????????????????## ## | | ????????????????????????# # | | ??????????????????????"?# ! % | | ??????????????????? ??"?# | | ?????????????????#????? # % | | ?????????????????????? ?# #### | | ?????????????????????#+## #####?## | | ?????????????????????# #????### | | ?????????????????????# ##### ## | | ????????????????????## !# % # | | ???????????????????#?# **# # | | ?????????????????##### # "!" # | | ?????????????????+ + "!" # | | ?????????????????######% %# """ # | | ?????????????????### # # | | ?????????????????+ ######## | | ???????????????? ### ## #??????# | | ??????????????? #?## ###"#??????# | | ?????????????? ???# #?#%##????## | | ????????????? ????# ###+######?# | | ???????????? ?????# # =%= #?# | | ?#######?###+###???## # S* #?# | | ? # a ##### # ### | | ? """"" # #=%% % #?# | | ? """"% @ T +% #?# | | ?a""""" # gmg u # ### | | ??""""" # gg=####### ## | | ???"""" ?##s% ###### # ## | | ???"""" ??# s # % ## | | ???""""???# s# "" #### | | ??? ???# + Y" # ## #??# | | ???###????# # "" #### ###??## | | ??????????# #= #?#?###?????? | | ??????????# # ! #???????????? | | ??????????# #####+##????????#??? | | ??????????# #????? ??????#????? | | ??????????# #?????? ??????????? | | ??????????# +??????? ???????#??? | | ??????????# #??????????????????? | | ??????????# #??????????????????? | | ??????????# #??????????????#???? | | ??????????# #???????????#??????? | | ??????????# ???????????#???????? | | ??????????# ?????????????????#?? | | ??????????? ???????????????????? | | ?????????????????????????????????? | | ?????????????????????????????????? | | ????????????????????????????????#? | | ???????????????????????????#?????? | +----------------------------------------------------+ Best States ------------- Heat Dissipation 50 Energy Generation 14 Energy Capacity 280 Matter Stores 300 Matter Capacity 300 Sight Range 16 Robot Scan Range 15 Terrain Scan Range 16 Terrain Scan Density 10 Armor Coverage 300 Evasion (%) 55 Recoil Reduction 1 Defensive Hacking 10 Item Schematics ----------------- Aerolev Unit | -8/Materials | Scanalyzed Robot Schematics ------------------ None Fabricated ------------ Nothing Alien Tech Used ----------------- None Achievements -------------- None Challenges ------------ None Game ------ Seed SubdwellerAntimatterKatana Manual? 0 Play Time 00:28:06 Cumulative 66.8 hours Start 2024.04.08 @ 20:40:46 End 2024.04.08 @ 21:07:54 Sessions 1 Manual Loads 0 Difficulty Rogue Special Mode None Game No. 55 Rogue 55 Adventurer 0 Explorer 0 Win Type - Total 1 Types 1/0/0/0/0/0/0/0/0 Lore% 35 Gallery% 49 Achievement% 43 Wizard Run 0 Options --------- Layout 0 ASCII 0 Keyboard 0 Movement Mouse Keybinds 0 Fullscreen 2 Font 24/Smallcaps Map View 76x50 Zoom Use 0% Tactical HUD 1 Map Filters NONE Filters NONE Steam 1 RUN: 87be80a7-05ea-46f2-8973-7346f92d7154